[Event "Early-Titled-Tuesday-Blitz-January-30-2024"]
[Site "Chess.com"]
[Date "2024.01.30"]
[Round "5"]
[White "jefferyx"]
[Black "blitzking1729"]
[Result "1-0"]
[WhiteElo "2980"]
[BlackElo "2703"]
[TimeControl "180+1"]
[EndTime "8:59:22 PST"]
[Termination "jefferyx won by resignation"]

1. d4 {[%clk 0:03:00.9]} 1... d5 {[%clk 0:02:59.5]} 2. c4 {[%clk 0:03:00.8]}
2... c6 {[%clk 0:02:59.2]} 3. Nf3 {[%clk 0:03:00.2]} 3... Nf6 {[%clk 0:02:58.3]}
4. cxd5 {[%clk 0:03:01.1]} 4... cxd5 {[%clk 0:02:57.7]} 5. Nc3 {[%clk 0:03:02]}
5... Nc6 {[%clk 0:02:55.7]} 6. Bf4 {[%clk 0:03:01.3]} 6... Bf5 {[%clk
0:02:54.2]} 7. Qb3 {[%clk 0:03:01.1]} 7... Na5 {[%clk 0:02:53.7]} 8. Qa4+ {[%clk
0:03:00.7]} 8... Bd7 {[%clk 0:02:53.8]} 9. Qc2 {[%clk 0:03:00.8]} 9... e6 {[%clk
0:02:53.2]} 10. e3 {[%clk 0:03:00.1]} 10... Rc8 {[%clk 0:02:53.3]} 11. Bd3
{[%clk 0:02:56.8]} 11... b5 {[%clk 0:02:53.1]} 12. a3 {[%clk 0:02:54.8]} 12...
Nc4 {[%clk 0:02:51.1]} 13. O-O {[%clk 0:02:49.5]} 13... Be7 {[%clk 0:02:50.6]}
14. Ne5 {[%clk 0:02:34.1]} 14... O-O {[%clk 0:02:36.7]} 15. Qe2 {[%clk
0:02:32.1]} 15... a6 {[%clk 0:02:35]} 16. Rfc1 {[%clk 0:02:17.8]} 16... Be8
{[%clk 0:02:31.5]} 17. a4 {[%clk 0:02:05.3]} 17... Nd7 {[%clk 0:02:17.9]} 18.
Nxd7 {[%clk 0:01:52.3]} 18... Bxd7 {[%clk 0:02:17.2]} 19. axb5 {[%clk
0:01:52.7]} 19... axb5 {[%clk 0:02:17]} 20. b3 {[%clk 0:01:53.2]} 20... Na5
{[%clk 0:01:55.7]} 21. Qa2 {[%clk 0:01:36.8]} 21... Bb4 {[%clk 0:01:35.7]} 22.
Nxb5 {[%clk 0:01:33.7]} 22... Qb6 {[%clk 0:01:34.4]} 23. Bc7 {[%clk 0:01:31.2]}
23... Qb7 {[%clk 0:01:17.9]} 24. Bxa5 {[%clk 0:01:25.8]} 24... Rxc1+ {[%clk
0:01:16.3]} 25. Rxc1 {[%clk 0:01:25.6]} 25... Bxb5 {[%clk 0:01:12.8]} 26. Bxb4
{[%clk 0:01:24.1]} 26... Ra8 {[%clk 0:01:10]} 27. Qxa8+ {[%clk 0:01:18.2]} 27...
Qxa8 {[%clk 0:01:10]} 28. Bxb5 {[%clk 0:01:19.1]} 28... h5 {[%clk 0:01:07.4]}
29. Bc5 {[%clk 0:01:16.4]} 29... Qa2 {[%clk 0:01:04.2]} 30. b4 {[%clk
0:01:14.2]} 30... g5 {[%clk 0:01:01.3]} 31. Bf1 {[%clk 0:01:06]} 31... Qb2
{[%clk 0:00:59.5]} 32. Re1 {[%clk 0:01:06.1]} 32... h4 {[%clk 0:00:53]} 33. b5
{[%clk 0:01:04.3]} 33... g4 {[%clk 0:00:52.1]} 34. b6 {[%clk 0:01:04.3]} 34...
g3 {[%clk 0:00:51.9]} 35. hxg3 {[%clk 0:01:04]} 35... hxg3 {[%clk 0:00:52.2]}
36. fxg3 {[%clk 0:01:04.9]} 36... Qd2 {[%clk 0:00:50.4]} 37. Re2 {[%clk
0:01:04.9]} 37... Qc1 {[%clk 0:00:50.7]} 38. Kf2 {[%clk 0:01:05.8]} 38... Qb1
{[%clk 0:00:50.7]} 39. Rd2 {[%clk 0:01:03.9]} 39... Kg7 {[%clk 0:00:46.3]} 40.
Bd3 {[%clk 0:01:03.8]} 40... Qc1 {[%clk 0:00:45.8]} 41. Ke2 {[%clk 0:01:02.2]}
41... Qg1 {[%clk 0:00:42.5]} 42. Bd6 {[%clk 0:00:50.1]} 42... Qxg2+ {[%clk
0:00:39.9]} 43. Kd1 {[%clk 0:00:48.9]} 43... Qh1+ {[%clk 0:00:39.5]} 44. Kc2
{[%clk 0:00:48.8]} 44... Qa1 {[%clk 0:00:39.3]} 45. Bc7 {[%clk 0:00:39.1]} 45...
Qa4+ {[%clk 0:00:37.5]} 46. Kb1 {[%clk 0:00:33.8]} 46... Qb3+ {[%clk 0:00:28.6]}
47. Kc1 {[%clk 0:00:34]} 47... Qc3+ {[%clk 0:00:27.4]} 48. Kd1 {[%clk
0:00:33.6]} 48... f5 {[%clk 0:00:23.2]} 49. Ke2 {[%clk 0:00:31]} 49... Qb3
{[%clk 0:00:22]} 50. Ba6 {[%clk 0:00:30.8]} 50... Qa4 {[%clk 0:00:21.6]} 51. Bc8
{[%clk 0:00:23.2]} 51... Kf7 {[%clk 0:00:16.5]} 52. Kf2 {[%clk 0:00:20.5]} 52...
Qc4 {[%clk 0:00:13.8]} 53. Bb7 {[%clk 0:00:09.6]} 53... Qc1 {[%clk 0:00:13.4]}
54. Re2 {[%clk 0:00:09.4]} 54... Qh1 {[%clk 0:00:13.1]} 55. Ba6 {[%clk
0:00:09.5]} 55... Qh2+ {[%clk 0:00:07.1]} 56. Kf3 {[%clk 0:00:10]} 56... Qh5+
{[%clk 0:00:06.4]} 57. Kf2 {[%clk 0:00:09.7]} 57... Qh2+ {[%clk 0:00:06.5]} 58.
Ke1 {[%clk 0:00:10.4]} 58... Qg1+ {[%clk 0:00:06.8]} 59. Kd2 {[%clk 0:00:11]}
59... Qa1 {[%clk 0:00:05.9]} 60. Bd3 {[%clk 0:00:11.3]} 60... Qb2+ {[%clk
0:00:06]} 61. Ke1 {[%clk 0:00:10.8]} 61... Qc1+ {[%clk 0:00:06.1]} 62. Kf2
{[%clk 0:00:10.8]} 62... Qh1 {[%clk 0:00:05.2]} 63. g4 {[%clk 0:00:06.8]} 63...
fxg4 {[%clk 0:00:03.9]} 64. b7 {[%clk 0:00:07.4]} 64... Qf3+ {[%clk 0:00:02.7]}
65. Ke1 {[%clk 0:00:07.6]} 65... Qh1+ {[%clk 0:00:02.6]} 66. Kd2 {[%clk
0:00:08.1]} 66... Qa1 {[%clk 0:00:03.3]} 67. b8=Q {[%clk 0:00:09]} 1-0

[Event "Early-Titled-Tuesday-Blitz-January-30-2024"]
[Site "Chess.com"]
[Date "2024.01.30"]
[Round "5"]
[White "winniethepooh04"]
[Black "Kingstar70"]
[Result "1-0"]
[WhiteElo "2539"]
[BlackElo "2328"]
[TimeControl "180+1"]
[EndTime "8:59:30 PST"]
[Termination "winniethepooh04 won by resignation"]

1. d4 {[%clk 0:03:00.9]} 1... Nf6 {[%clk 0:02:59.6]} 2. Nf3 {[%clk 0:03:00.2]}
2... g6 {[%clk 0:02:59.5]} 3. Bf4 {[%clk 0:03:00.8]} 3... d6 {[%clk 0:02:59.5]}
4. h3 {[%clk 0:03:00.5]} 4... Bg7 {[%clk 0:02:59.9]} 5. e3 {[%clk 0:03:01.1]}
5... O-O {[%clk 0:03:00.5]} 6. Be2 {[%clk 0:03:01.6]} 6... c6 {[%clk 0:03:01.2]}
7. O-O {[%clk 0:03:01.6]} 7... Nbd7 {[%clk 0:03:01.9]} 8. c4 {[%clk 0:03:02.1]}
8... Qb6 {[%clk 0:03:02.1]} 9. Qc2 {[%clk 0:02:52.8]} 9... Re8 {[%clk
0:03:00.9]} 10. Nc3 {[%clk 0:02:52.2]} 10... e5 {[%clk 0:03:00.1]} 11. Bh2
{[%clk 0:02:52.4]} 11... a6 {[%clk 0:02:50.6]} 12. Rfe1 {[%clk 0:02:49.7]} 12...
e4 {[%clk 0:02:46.7]} 13. Nd2 {[%clk 0:02:48.8]} 13... d5 {[%clk 0:02:47.1]} 14.
Rac1 {[%clk 0:02:47.5]} 14... Nf8 {[%clk 0:02:46.4]} 15. Na4 {[%clk 0:02:44.3]}
15... Qd8 {[%clk 0:02:45.5]} 16. cxd5 {[%clk 0:02:44.8]} 16... cxd5 {[%clk
0:02:45.5]} 17. Nc5 {[%clk 0:02:44]} 17... Ne6 {[%clk 0:02:43.2]} 18. b4 {[%clk
0:02:43.9]} 18... Bf8 {[%clk 0:02:38.9]} 19. a3 {[%clk 0:02:38.1]} 19... Bd6
{[%clk 0:02:32.2]} 20. Bxd6 {[%clk 0:02:31]} 20... Qxd6 {[%clk 0:02:33.1]} 21.
Nxe6 {[%clk 0:02:29.5]} 21... Bxe6 {[%clk 0:02:32.6]} 22. Qc7 {[%clk 0:02:28.2]}
22... Qxc7 {[%clk 0:02:26.9]} 23. Rxc7 {[%clk 0:02:29.1]} 23... Reb8 {[%clk
0:02:27.1]} 24. Rec1 {[%clk 0:02:28.7]} 24... Ne8 {[%clk 0:02:27.2]} 25. R7c3
{[%clk 0:02:25.4]} 25... Rc8 {[%clk 0:02:19.9]} 26. Nb3 {[%clk 0:02:23.9]} 26...
Rxc3 {[%clk 0:02:19.6]} 27. Rxc3 {[%clk 0:02:24.8]} 27... Rc8 {[%clk 0:02:19.1]}
28. Rxc8 {[%clk 0:02:13.9]} 28... Bxc8 {[%clk 0:02:19]} 29. Kf1 {[%clk
0:02:13.9]} 29... Kf8 {[%clk 0:02:19.3]} 30. Ke1 {[%clk 0:02:14.2]} 30... Ke7
{[%clk 0:02:19.7]} 31. Kd2 {[%clk 0:02:14.6]} 31... Kd6 {[%clk 0:02:19.9]} 32.
Kc3 {[%clk 0:02:14.8]} 32... b6 {[%clk 0:02:20.3]} 33. a4 {[%clk 0:02:11.4]}
33... Nc7 {[%clk 0:02:20]} 34. a5 {[%clk 0:02:10.6]} 34... bxa5 {[%clk
0:02:19.1]} 35. bxa5 {[%clk 0:02:10.5]} 35... Bd7 {[%clk 0:02:19.1]} 36. Nc5
{[%clk 0:02:09.6]} 36... Bc8 {[%clk 0:02:14.6]} 37. Kb4 {[%clk 0:02:08.6]} 37...
Kc6 {[%clk 0:02:13.9]} 38. Bd1 {[%clk 0:02:07.6]} 38... Kd6 {[%clk 0:02:13.4]}
39. Ba4 {[%clk 0:02:07]} 39... Ne6 {[%clk 0:02:01.8]} 40. Nxe6 {[%clk
0:02:03.8]} 40... Bxe6 {[%clk 0:01:57.9]} 41. Bd1 {[%clk 0:02:04]} 41... g5
{[%clk 0:01:56.4]} 42. Be2 {[%clk 0:02:01]} 42... Bc8 {[%clk 0:01:56.5]} 43. g3
{[%clk 0:02:01.1]} 43... f6 {[%clk 0:01:56.1]} 44. h4 {[%clk 0:02:01.2]} 44...
h6 {[%clk 0:01:56.2]} 45. Bf1 {[%clk 0:02:00.5]} 45... Bb7 {[%clk 0:01:55.6]}
46. Be2 {[%clk 0:02:00.5]} 46... Bc8 {[%clk 0:01:55.5]} 47. Bf1 {[%clk
0:02:00.9]} 47... gxh4 {[%clk 0:01:48.7]} 48. gxh4 {[%clk 0:02:00.5]} 48... Kc6
{[%clk 0:01:48.1]} 49. Be2 {[%clk 0:01:57.4]} 49... Kd6 {[%clk 0:01:47.3]} 50.
Bh5 {[%clk 0:01:56.7]} 50... Bd7 {[%clk 0:01:42.3]} 51. Bg6 {[%clk 0:01:54]}
51... Bb5 {[%clk 0:01:41.5]} 52. Bh5 {[%clk 0:01:52.4]} 52... Bc4 {[%clk
0:01:40.1]} 53. Bd1 {[%clk 0:01:51.1]} 53... Kc6 {[%clk 0:01:37.2]} 54. Ba4+
{[%clk 0:01:51.1]} 54... Kd6 {[%clk 0:01:37.3]} 55. Kc3 {[%clk 0:01:51.1]} 55...
Kc7 {[%clk 0:01:33.5]} 56. Be8 {[%clk 0:01:48]} 56... Kd6 {[%clk 0:01:33.5]} 57.
Bg6 {[%clk 0:01:46.2]} 57... Bb5 {[%clk 0:01:31.9]} 58. Bf5 {[%clk 0:01:46.4]}
58... Be2 {[%clk 0:01:29.9]} 59. Kb4 {[%clk 0:01:46]} 59... Bd3 {[%clk
0:01:28.7]} 60. Bg6 {[%clk 0:01:44.8]} 60... Be2 {[%clk 0:01:28.2]} 61. Bf5
{[%clk 0:01:42.5]} 61... Bd3 {[%clk 0:01:27.9]} 62. f3 {[%clk 0:01:41.3]} 62...
Kc6 {[%clk 0:01:24.4]} 63. fxe4 {[%clk 0:01:40.8]} 63... dxe4 {[%clk 0:01:23.5]}
64. Bg6 {[%clk 0:01:29.8]} 64... Kd6 {[%clk 0:01:23.7]} 65. Kc3 {[%clk
0:01:28.6]} 65... Kd5 {[%clk 0:01:22]} 66. Bf7+ {[%clk 0:01:26.5]} 66... Kd6
{[%clk 0:01:22.3]} 67. Bc4 {[%clk 0:01:20.8]} 67... Bxc4 {[%clk 0:01:19.4]} 68.
Kxc4 {[%clk 0:01:21.7]} 68... f5 {[%clk 0:01:19.5]} 69. d5 {[%clk 0:01:18.1]}
69... Ke5 {[%clk 0:00:46.2]} 70. Kc5 {[%clk 0:01:17.4]} 70... f4 {[%clk
0:00:46.7]} 71. exf4+ {[%clk 0:01:15.4]} 71... Kxf4 {[%clk 0:00:47.6]} 72. d6
{[%clk 0:01:15.8]} 72... e3 {[%clk 0:00:48.1]} 73. d7 {[%clk 0:01:16.4]} 73...
e2 {[%clk 0:00:48.8]} 74. d8=Q {[%clk 0:01:12.7]} 74... e1=Q {[%clk 0:00:49.2]}
75. Qf6+ {[%clk 0:01:04.5]} 75... Kg4 {[%clk 0:00:44.6]} 76. Qg6+ {[%clk
0:01:01.6]} 76... Kxh4 {[%clk 0:00:41.9]} 77. Qxh6+ {[%clk 0:01:01.3]} 77... Kg4
{[%clk 0:00:42.3]} 78. Qxa6 {[%clk 0:00:56.8]} 78... Qe3+ {[%clk 0:00:29.2]} 79.
Kb4 {[%clk 0:00:48.1]} 79... Qd2+ {[%clk 0:00:27.6]} 80. Kc5 {[%clk 0:00:44.2]}
80... Qe3+ {[%clk 0:00:27.7]} 81. Kc6 {[%clk 0:00:43.1]} 81... Qe6+ {[%clk
0:00:27.6]} 82. Kb7 {[%clk 0:00:40.5]} 82... Qd7+ {[%clk 0:00:27.7]} 83. Kb6
{[%clk 0:00:34.2]} 83... Qd6+ {[%clk 0:00:22.5]} 84. Kb5 {[%clk 0:00:29.1]}
84... Qd5+ {[%clk 0:00:22.3]} 85. Kb6 {[%clk 0:00:29.5]} 85... Qd6+ {[%clk
0:00:22.5]} 86. Ka7 {[%clk 0:00:29.6]} 86... Qd7+ {[%clk 0:00:15]} 87. Kb8
{[%clk 0:00:29.1]} 87... Qd8+ {[%clk 0:00:12.9]} 88. Qc8+ {[%clk 0:00:28.7]}
88... Qxc8+ {[%clk 0:00:12.2]} 89. Kxc8 {[%clk 0:00:29.6]} 89... Kf5 {[%clk
0:00:12.5]} 90. a6 {[%clk 0:00:30.5]} 90... Ke5 {[%clk 0:00:13.3]} 91. a7 {[%clk
0:00:31.4]} 91... Kd6 {[%clk 0:00:14]} 92. a8=Q {[%clk 0:00:31.5]} 1-0

[Event "Early-Titled-Tuesday-Blitz-January-30-2024"]
[Site "Chess.com"]
[Date "2024.01.30"]
[Round "5"]
[White "sokidze"]
[Black "spaski2004"]
[Result "0-1"]
[WhiteElo "2860"]
[BlackElo "2984"]
[TimeControl "180+1"]
[EndTime "8:59:34 PST"]
[Termination "spaski2004 won by resignation"]

1. d4 {[%clk 0:03:00.9]} 1... c6 {[%clk 0:02:49.2]} 2. c4 {[%clk 0:02:58.3]}
2... d6 {[%clk 0:02:48.3]} 3. Nf3 {[%clk 0:02:55.2]} 3... Nf6 {[%clk 0:02:45.9]}
4. Nc3 {[%clk 0:02:53.8]} 4... Bg4 {[%clk 0:02:45.2]} 5. Qb3 {[%clk 0:02:42.7]}
5... Qc7 {[%clk 0:02:40]} 6. Bd2 {[%clk 0:02:09.4]} 6... Nbd7 {[%clk 0:02:37.1]}
7. Rc1 {[%clk 0:02:05.9]} 7... e5 {[%clk 0:02:33.5]} 8. d5 {[%clk 0:01:42.2]}
8... Be7 {[%clk 0:02:33]} 9. g3 {[%clk 0:01:38.1]} 9... Bxf3 {[%clk 0:02:32]}
10. exf3 {[%clk 0:01:38.5]} 10... O-O {[%clk 0:02:31.5]} 11. Bh3 {[%clk
0:01:37.4]} 11... Nc5 {[%clk 0:02:26.8]} 12. Qc2 {[%clk 0:01:37.2]} 12... a5
{[%clk 0:02:26.3]} 13. O-O {[%clk 0:01:33.6]} 13... b5 {[%clk 0:02:01.6]} 14.
Be3 {[%clk 0:00:58]} 14... b4 {[%clk 0:01:53.4]} 15. Ne4 {[%clk 0:00:50.5]}
15... Ncxe4 {[%clk 0:01:45.8]} 16. fxe4 {[%clk 0:00:50.4]} 16... Rfb8 {[%clk
0:01:39.5]} 17. Qd3 {[%clk 0:00:41.6]} 17... a4 {[%clk 0:01:05.2]} 18. Kh1
{[%clk 0:00:41.2]} 18... Kh8 {[%clk 0:00:58.1]} 19. f4 {[%clk 0:00:40.5]} 19...
a3 {[%clk 0:00:48.7]} 20. b3 {[%clk 0:00:40.5]} 20... c5 {[%clk 0:00:42.6]} 21.
fxe5 {[%clk 0:00:39.1]} 21... dxe5 {[%clk 0:00:43.5]} 22. Rf3 {[%clk 0:00:35.7]}
22... Rf8 {[%clk 0:00:36.1]} 23. Rcf1 {[%clk 0:00:35.8]} 23... Kg8 {[%clk
0:00:33.9]} 24. Bd2 {[%clk 0:00:27.2]} 24... Ne8 {[%clk 0:00:32.2]} 25. g4
{[%clk 0:00:15.5]} 25... h6 {[%clk 0:00:30.2]} 26. Bg2 {[%clk 0:00:11.3]} 26...
Bg5 {[%clk 0:00:27.4]} 27. Bxg5 {[%clk 0:00:08.7]} 27... hxg5 {[%clk 0:00:28.3]}
28. Qe3 {[%clk 0:00:07.1]} 28... Qe7 {[%clk 0:00:28.2]} 29. Rh3 {[%clk
0:00:04.3]} 29... g6 {[%clk 0:00:26.8]} 30. Rh6 {[%clk 0:00:03.6]} 30... Kg7
{[%clk 0:00:25.3]} 31. Qh3 {[%clk 0:00:03.7]} 31... Nf6 {[%clk 0:00:19]} 32. Kg1
{[%clk 0:00:01.5]} 32... Rh8 {[%clk 0:00:17.1]} 33. Rxh8 {[%clk 0:00:02.2]}
33... Rxh8 {[%clk 0:00:17.7]} 34. Qg3 {[%clk 0:00:03]} 34... Qd6 {[%clk
0:00:07.2]} 35. h3 {[%clk 0:00:03.3]} 35... Qe7 {[%clk 0:00:06.2]} 36. Qf3
{[%clk 0:00:03.6]} 36... Rh6 {[%clk 0:00:04.9]} 37. Qe3 {[%clk 0:00:03.2]} 37...
Nd7 {[%clk 0:00:03.2]} 38. Rd1 {[%clk 0:00:03.5]} 38... Qd6 {[%clk 0:00:03.1]}
39. Qxg5 {[%clk 0:00:03.6]} 39... f6 {[%clk 0:00:03.4]} 40. Qe3 {[%clk
0:00:03.6]} 40... g5 {[%clk 0:00:04.1]} 41. Rf1 {[%clk 0:00:03.8]} 41... Nf8
{[%clk 0:00:04.1]} 42. Kf2 {[%clk 0:00:02.5]} 42... Ng6 {[%clk 0:00:04.5]} 43.
Rh1 {[%clk 0:00:03.2]} 43... Nf4 {[%clk 0:00:05]} 44. Bf1 {[%clk 0:00:03.6]}
44... Rh4 {[%clk 0:00:05.5]} 45. Ke1 {[%clk 0:00:03.9]} 45... Kf8 {[%clk
0:00:05.3]} 46. Kd2 {[%clk 0:00:02.8]} 46... Ke7 {[%clk 0:00:05.6]} 47. Kc2
{[%clk 0:00:03.2]} 47... Kd7 {[%clk 0:00:06.2]} 48. Qf3 {[%clk 0:00:03.4]} 48...
Kc7 {[%clk 0:00:06.3]} 49. Rh2 {[%clk 0:00:03.5]} 49... Qe7 {[%clk 0:00:05.7]}
50. Rh1 {[%clk 0:00:03.9]} 50... Kd6 {[%clk 0:00:05.6]} 51. Rh2 {[%clk
0:00:04.3]} 51... Qh7 {[%clk 0:00:06.3]} 52. Rh1 {[%clk 0:00:04.1]} 52... Qh8
{[%clk 0:00:06.8]} 53. Rh2 {[%clk 0:00:04.5]} 53... Qc8 {[%clk 0:00:07.1]} 54.
Rh1 {[%clk 0:00:04.8]} 54... Qd7 {[%clk 0:00:07.4]} 55. Rh2 {[%clk 0:00:05.3]}
55... Qg7 {[%clk 0:00:08]} 56. Rh1 {[%clk 0:00:05.4]} 56... Qg6 {[%clk
0:00:08.7]} 57. Kc1 {[%clk 0:00:05]} 57... Qe8 {[%clk 0:00:09.2]} 58. Rh2 {[%clk
0:00:05.3]} 58... Qh8 {[%clk 0:00:09.3]} 59. Kb1 {[%clk 0:00:04.4]} 59... Qg8
{[%clk 0:00:09.8]} 60. Rh1 {[%clk 0:00:04.6]} 60... Qg7 {[%clk 0:00:10.4]} 61.
Rh2 {[%clk 0:00:04.9]} 61... Rh6 {[%clk 0:00:10.8]} 62. Rh1 {[%clk 0:00:05.1]}
62... Ng6 {[%clk 0:00:11.2]} 63. Rh2 {[%clk 0:00:03.6]} 63... Nf4 {[%clk
0:00:11.5]} 64. Rh1 {[%clk 0:00:03.9]} 64... Qf7 {[%clk 0:00:12]} 65. Rh2 {[%clk
0:00:04.2]} 65... Rh7 {[%clk 0:00:12.3]} 66. Rh1 {[%clk 0:00:04.7]} 66... Qf8
{[%clk 0:00:12.8]} 67. Rh2 {[%clk 0:00:05.3]} 67... Rh4 {[%clk 0:00:12.9]} 68.
Rh1 {[%clk 0:00:05.7]} 68... Qa8 {[%clk 0:00:13.1]} 69. Rh2 {[%clk 0:00:05.8]}
69... Qa7 {[%clk 0:00:13.6]} 70. Rh1 {[%clk 0:00:06]} 70... Qh7 {[%clk
0:00:13.2]} 71. Qe3 {[%clk 0:00:04.2]} 71... Rxg4 {[%clk 0:00:11]} 72. Qf3
{[%clk 0:00:03.3]} 72... Rh4 {[%clk 0:00:11.2]} 73. Rg1 {[%clk 0:00:02.5]} 73...
Nh5 {[%clk 0:00:10.3]} 74. Ka1 {[%clk 0:00:01.9]} 74... Rf4 {[%clk 0:00:09.4]}
75. Kb1 {[%clk 0:00:02.6]} 75... Rxf3 {[%clk 0:00:09.2]} 0-1

[Event "Early-Titled-Tuesday-Blitz-January-30-2024"]
[Site "Chess.com"]
[Date "2024.01.30"]
[Round "5"]
[White "Iball95"]
[Black "chess123456s"]
[Result "1-0"]
[WhiteElo "2789"]
[BlackElo "2571"]
[TimeControl "180+1"]
[EndTime "9:00:02 PST"]
[Termination "Iball95 won by resignation"]

1. e4 {[%clk 0:03:00.9]} 1... c5 {[%clk 0:02:55.5]} 2. Nf3 {[%clk 0:03:00.3]}
2... d6 {[%clk 0:02:55.2]} 3. Nc3 {[%clk 0:02:58.9]} 3... g6 {[%clk 0:02:51.2]}
4. d4 {[%clk 0:02:59.2]} 4... cxd4 {[%clk 0:02:52]} 5. Qxd4 {[%clk 0:02:59.5]}
5... Nf6 {[%clk 0:02:51.2]} 6. e5 {[%clk 0:03:00]} 6... Nc6 {[%clk 0:02:45.3]}
7. Bb5 {[%clk 0:02:59.9]} 7... dxe5 {[%clk 0:02:43.1]} 8. Qxd8+ {[%clk
0:03:00.8]} 8... Kxd8 {[%clk 0:02:43.8]} 9. Bxc6 {[%clk 0:03:01.4]} 9... bxc6
{[%clk 0:02:44.7]} 10. Nxe5 {[%clk 0:03:01.7]} 10... Ke8 {[%clk 0:02:43.1]} 11.
Bd2 {[%clk 0:03:02]} 11... Bb7 {[%clk 0:02:41.6]} 12. O-O-O {[%clk 0:02:59.6]}
12... e6 {[%clk 0:02:36.6]} 13. Rhe1 {[%clk 0:02:36.3]} 13... Nd5 {[%clk
0:02:29.8]} 14. Ne4 {[%clk 0:02:27.3]} 14... f6 {[%clk 0:02:07]} 15. Nc4 {[%clk
0:02:21.6]} 15... Rd8 {[%clk 0:01:09.5]} 16. Na5 {[%clk 0:02:18.9]} 16... Ba8
{[%clk 0:01:08.2]} 17. c4 {[%clk 0:02:16.9]} 17... Nb4 {[%clk 0:01:01]} 18. Kb1
{[%clk 0:01:39.3]} 18... Kf7 {[%clk 0:00:42.6]} 19. Bc3 {[%clk 0:01:38.7]} 19...
Be7 {[%clk 0:00:27.2]} 20. Nxf6 {[%clk 0:01:25.7]} 20... Nxa2 {[%clk 0:00:18.8]}
21. Kxa2 {[%clk 0:01:16.5]} 21... Bxf6 {[%clk 0:00:19.1]} 22. Bxf6 {[%clk
0:01:13.8]} 22... Kxf6 {[%clk 0:00:20]} 23. c5 {[%clk 0:01:07.5]} 23... Rd5
{[%clk 0:00:20.2]} 24. Rxd5 {[%clk 0:01:07.4]} 24... cxd5 {[%clk 0:00:20.6]} 25.
b4 {[%clk 0:01:07.1]} 25... Rc8 {[%clk 0:00:19.6]} 26. Kb3 {[%clk 0:01:05.9]}
26... d4 {[%clk 0:00:19.7]} 27. f3 {[%clk 0:01:05.9]} 27... Bd5+ {[%clk
0:00:19.9]} 28. Ka4 {[%clk 0:01:06.3]} 28... e5 {[%clk 0:00:20.2]} 29. Rc1
{[%clk 0:01:00.6]} 29... d3 {[%clk 0:00:19.4]} 30. Rd1 {[%clk 0:00:57.7]} 30...
e4 {[%clk 0:00:19.9]} 31. fxe4 {[%clk 0:00:58.6]} 31... Bxe4 {[%clk 0:00:20.8]}
32. Kb5 {[%clk 0:00:54.5]} 32... Ke5 {[%clk 0:00:20.9]} 33. Kc4 {[%clk
0:00:52.9]} 33... a6 {[%clk 0:00:15.4]} 34. Rd2 {[%clk 0:00:52.3]} 34... Kf4
{[%clk 0:00:14.1]} 35. Kc3 {[%clk 0:00:51.4]} 35... Rd8 {[%clk 0:00:11]} 36. Nc4
{[%clk 0:00:51.2]} 36... g5 {[%clk 0:00:07.5]} 37. Nd6 {[%clk 0:00:50.2]} 37...
Ke3 {[%clk 0:00:05.4]} 38. Nc4+ {[%clk 0:00:43.3]} 38... Kf4 {[%clk 0:00:05.8]}
39. Rf2+ {[%clk 0:00:30.9]} 39... Kg4 {[%clk 0:00:05.6]} 40. Nd2 {[%clk
0:00:28.3]} 40... Bg6 {[%clk 0:00:05.3]} 41. Rf6 {[%clk 0:00:26.9]} 41... Kh5
{[%clk 0:00:05.7]} 42. Rxa6 {[%clk 0:00:26]} 42... Rf8 {[%clk 0:00:06.3]} 43. b5
{[%clk 0:00:23.7]} 43... Rf5 {[%clk 0:00:06.2]} 44. Rc6 {[%clk 0:00:20.8]} 44...
Be8 {[%clk 0:00:06.5]} 45. Rc7 {[%clk 0:00:18.9]} 45... Bxb5 {[%clk 0:00:06.8]}
46. Rxh7+ {[%clk 0:00:19.1]} 46... Kg6 {[%clk 0:00:07.5]} 47. Rc7 {[%clk
0:00:19.7]} 47... Rf6 {[%clk 0:00:07.9]} 48. g3 {[%clk 0:00:17.6]} 48... Kf5
{[%clk 0:00:06.9]} 49. Rb7 {[%clk 0:00:15.5]} 49... Bc6 {[%clk 0:00:07.1]} 50.
Rb6 {[%clk 0:00:15.7]} 50... Kg4 {[%clk 0:00:07.2]} 51. Kxd3 {[%clk 0:00:15.6]}
51... Kh3 {[%clk 0:00:06.4]} 52. Ne4 {[%clk 0:00:15.9]} 52... Rg6 {[%clk
0:00:02.1]} 53. Nxg5+ {[%clk 0:00:14.2]} 53... Kxh2 {[%clk 0:00:02.7]} 54. Nf7
{[%clk 0:00:14]} 54... Kxg3 {[%clk 0:00:02.7]} 55. Ne5 {[%clk 0:00:14.6]} 55...
Rg5 {[%clk 0:00:02.5]} 56. Kd4 {[%clk 0:00:13.4]} 56... Bg2 {[%clk 0:00:01.9]}
57. Rb3+ {[%clk 0:00:13.5]} 57... Kf2 {[%clk 0:00:02.1]} 58. Rb2+ {[%clk
0:00:13.6]} 58... Kg1 {[%clk 0:00:02]} 59. Nd3 {[%clk 0:00:12.5]} 59... Rg4+
{[%clk 0:00:02]} 60. Ke3 {[%clk 0:00:12.3]} 60... Rg3+ {[%clk 0:00:02.2]} 61.
Kd4 {[%clk 0:00:12.8]} 61... Rg8 {[%clk 0:00:02.7]} 62. Nf4 {[%clk 0:00:12.1]}
62... Bf1 {[%clk 0:00:02.6]} 63. Rb1 {[%clk 0:00:11.7]} 63... Rc8 {[%clk
0:00:02.9]} 64. Nd3 {[%clk 0:00:10.3]} 64... Kg2 {[%clk 0:00:02.9]} 65. Nf4+
{[%clk 0:00:09.9]} 65... Kf2 {[%clk 0:00:03.2]} 66. Rb2+ {[%clk 0:00:08.7]}
66... Kg3 {[%clk 0:00:03.3]} 67. Ne6 {[%clk 0:00:09.3]} 67... Bg2 {[%clk
0:00:04]} 68. Ke5 {[%clk 0:00:09.3]} 68... Re8 {[%clk 0:00:04.4]} 69. Kd6 {[%clk
0:00:08.8]} 69... Bh3 {[%clk 0:00:04.7]} 70. Rb3+ {[%clk 0:00:08.8]} 70... Kh4
{[%clk 0:00:04.7]} 71. Nf4 {[%clk 0:00:08.6]} 71... Rd8+ {[%clk 0:00:05.4]} 72.
Kc7 {[%clk 0:00:06.8]} 72... Rc8+ {[%clk 0:00:06]} 73. Kb7 {[%clk 0:00:06.4]}
73... Bg4 {[%clk 0:00:06.7]} 74. c6 {[%clk 0:00:06.5]} 74... Kg5 {[%clk
0:00:06.1]} 75. Nd5 {[%clk 0:00:06.5]} 75... Be6 {[%clk 0:00:04.4]} 76. Rb5
{[%clk 0:00:07.1]} 76... Rh8 {[%clk 0:00:03.5]} 77. Nc7+ {[%clk 0:00:06.6]}
77... Bf5 {[%clk 0:00:03.9]} 78. Ne6+ {[%clk 0:00:05.9]} 78... Kf6 {[%clk
0:00:04.5]} 79. Nd4 {[%clk 0:00:06.6]} 79... Rh7+ {[%clk 0:00:04.9]} 80. c7
{[%clk 0:00:06.8]} 80... Be4+ {[%clk 0:00:04.9]} 81. Kb6 {[%clk 0:00:06.6]}
81... Rh8 {[%clk 0:00:02.8]} 82. Rc5 {[%clk 0:00:07.1]} 82... Ke7 {[%clk
0:00:02.1]} 83. c8=Q {[%clk 0:00:06.4]} 83... Rxc8 {[%clk 0:00:02.8]} 84. Rxc8
{[%clk 0:00:07]} 84... Kd6 {[%clk 0:00:03.7]} 85. Rc5 {[%clk 0:00:07.5]} 85...
Bd5 {[%clk 0:00:03.9]} 86. Nb5+ {[%clk 0:00:08.4]} 86... Ke5 {[%clk 0:00:04.3]}
87. Nc3 {[%clk 0:00:08.5]} 1-0